bitfinex-derivatives/quotes_ETHF0:USTF0_20250807
["timestamp","ask_amount","ask_price","bid_price","bid_amount"]
[1754569354171,22.858493,3835.0,3834.9,2.33303453]
[1754569354672,22.858493,3835.0,3834.9,3.20063453]
[1754569355475,22.858493,3835.0,3834.9,1.76593453]
[1754569356273,22.480293,3835.0,3834.9,3.76273453]
[1754569356472,22.480293,3835.0,3834.9,4.80093453]
[1754569356772,3.842293,3835.0,3834.9,4.80093453]
[1754569356971,1.376393,3835.0,3834.9,4.80093453]
[1754569357269,19.364293,3835.0,3834.9,4.80093453]
[1754569357973,0.732293,3835.0,3834.9,4.80093453]
[1754569358174,19.363293,3835.0,3834.9,4.16863453]
[1754569358476,19.363293,3835.0,3834.9,4.80093453]
[1754569359168,22.429293,3835.0,3834.9,4.80093453]
[1754569359370,21.025793,3835.0,3834.9,4.80093453]
[1754569359974,21.022793,3835.0,3834.9,4.80093453]
[1754569360669,3.798293,3835.0,3834.9,4.80093453]
[1754569360870,22.424293,3835.0,3834.9,4.80093453]
[1754569362471,22.802493,3835.0,3834.9,4.16863453]
[1754569362777,22.802493,3835.0,3834.9,1.76593453]
[1754569363080,22.802493,3835.0,3834.9,0.93873453]
[1754569363870,22.802493,3835.0,3834.9,1.76593453]
[1754569364273,4.176493,3835.0,3834.9,1.76593453]
[1754569364475,22.793493,3835.0,3834.9,1.76593453]
[1754569366573,22.415293,3835.0,3834.9,3.76273453]
[1754569366776,22.412293,3835.0,3834.9,4.80093453]
[1754569367181,21.555193,3835.0,3834.9,0.93873453]
[1754569367376,22.412293,3835.0,3834.9,3.20063453]
[1754569367573,22.790493,3835.0,3834.9,1.76593453]
[1754569369875,21.549193,3835.0,3834.9,4.80093453]
[1754569370376,22.406293,3835.0,3834.9,1.76593453]
[1754569370677,22.406293,3835.0,3834.9,2.33303453]
[1754569370877,22.406293,3835.0,3834.9,3.20063453]
[1754569371578,4.176493,3835.0,3834.9,2.33303453]
[1754569371885,22.780493,3835.0,3834.9,3.20063453]
[1754569372182,22.780493,3835.0,3834.9,3.76273453]
[1754569372183,22.402293,3835.0,3834.9,3.76273453]
[1754569372484,22.780493,3835.0,3834.9,3.76273453]
[1754569372984,22.402293,3835.0,3834.9,4.16863453]
[1754569374178,22.402293,3835.0,3834.9,4.80093453]
[1754569376280,22.780493,3835.0,3834.9,4.16863453]
[1754569376482,22.780493,3835.0,3834.9,1.76593453]
[1754569376883,1.30363,3834.9,3834.2,0.8272]
[1754569377081,2.56353,3834.3,3834.2,3.8622]
[1754569377283,21.888823,3834.3,3834.2,3.8622]
[1754569378187,20.393223,3834.3,3834.2,3.8622]
[1754569379192,1.800223,3834.3,3834.2,3.8622]
[1754569379390,19.842823,3834.3,3834.2,3.8622]
[1754569380086,20.983423,3834.3,3834.2,3.8622]
[1754569380286,21.816023,3834.3,3834.2,3.8622]
[1754569380791,21.907223,3834.3,3834.2,0.8272]
[1754569381389,21.907223,3834.3,3833.8,3.0663]
[1754569381390,1.50618,3833.9,3833.8,3.0663]
[1754569381589,21.08078,3833.9,3833.8,2.4234]
[1754569381786,21.813073,3833.9,3833.8,2.4234]
[1754569381988,21.813073,3833.9,3833.8,3.9146]
[1754569382184,21.813073,3833.9,3833.8,2.3971]
[1754569382492,0.52171,3833.0,3832.8,3.0663]
[1754569382692,18.584,3832.9,3832.8,3.0663]
[1754569384495,19.1187,3832.9,3832.8,3.9146]
[1754569385089,18.584,3832.9,3832.8,3.9146]
[1754569385694,0.52171,3833.0,3832.8,3.9146]
[1754569385895,0.52171,3833.0,3832.9,3.9146]
[1754569386296,19.10171,3833.0,3832.9,3.9146]
[1754569387703,19.10071,3833.0,3832.9,3.9146]
[1754569388093,0.52171,3833.0,3832.9,3.9146]
[1754569388299,18.576,3833.0,3832.9,3.9146]
[1754569388700,0.5217,3833.1,3832.9,1.5488]
[1754569388898,0.52163,3833.6,3833.5,1.0748]
[1754569389101,0.72926818,3834.1,3833.7,1.5488]
[1754569389301,0.52157,3834.0,3833.9,1.5488]
[1754569389607,19.09657,3834.0,3833.9,3.9146]
[1754569390608,0.52156,3834.1,3834.0,3.9146]
[1754569390903,2.3619,3835.0,3834.9,1.5488]
[1754569391203,21.45534,3835.0,3834.9,3.9146]
[1754569391412,4.41800379,3835.0,3834.9,3.9146]
[1754569391604,21.45434,3835.0,3834.9,3.9146]
[1754569391800,3.61260379,3835.0,3834.9,3.9146]
[1754569392007,21.45234,3835.0,3834.9,3.9146]
[1754569392208,22.18160379,3835.0,3834.9,3.9146]
[1754569392411,22.18160237,3835.0,3834.9,3.9146]
[1754569392604,22.98700237,3835.0,3834.9,3.9146]
[1754569392809,1.25070237,3835.0,3834.9,2.3971]
[1754569393006,0.72926237,3835.1,3834.9,2.07024]
[1754569393206,1.30331,3835.9,3834.5,1.30374]
[1754569393207,0.52131,3835.9,3835.6,2.3658]
[1754569393505,0.9886,3836.0,3835.4,0.52137]
[1754569393506,2.62386237,3836.0,3835.9,3.9146]
[1754569393713,21.19086237,3836.0,3835.9,3.9146]
[1754569393910,22.98486237,3836.0,3835.9,3.9146]
[1754569394314,22.98486237,3836.0,3835.9,2.3971]
[1754569394612,2.05064,3835.7,3835.6,3.9146]
[1754569394809,1.71786237,3836.0,3835.6,1.5488]
[1754569395017,0.9403,3836.0,3835.9,3.9146]
[1754569395209,19.5013,3836.0,3835.9,3.9146]
[1754569395513,22.17346237,3836.0,3835.9,3.9146]
[1754569395908,20.93526237,3836.0,3835.9,3.9146]
[1754569396308,22.17346237,3836.0,3835.9,3.9146]
[1754569396712,22.17266453,3836.0,3835.9,3.9146]
[1754569396910,3.61166257,3836.0,3835.9,3.9146]
[1754569397115,21.4422,3836.0,3835.9,3.9146]
[1754569397413,22.2476,3836.0,3835.9,3.9146]
[1754569397610,20.204,3836.0,3835.9,3.9146]
[1754569397806,28.66891,3836.4,3832.6,0.52176]
[1754569398007,0.4319,3836.5,3831.9,0.93946946]
[1754569398008,26.06923,3835.5,3831.9,0.93946946]
[1754569398211,0.2061,3833.6,3831.9,0.93946946]
[1754569398514,0.52174,3832.8,3832.6,1.5175]
[1754569398813,17.94174,3832.8,3832.7,1.5175]
[1754569399413,0.52174,3832.8,3832.7,1.5175]
[1754569399619,19.07474,3832.8,3832.7,1.5175]
[1754569399919,19.07474,3832.8,3832.7,2.3658]
[1754569400917,19.07474,3832.8,3832.7,3.9146]
[1754569401717,0.52174,3832.8,3832.7,3.9146]
[1754569401915,19.07674,3832.8,3832.7,3.9146]
[1754569402316,0.52174,3832.8,3832.7,3.9146]
[1754569402520,19.07674,3832.8,3832.7,3.9146]
[1754569403515,19.66574,3832.8,3832.7,3.9146]
[1754569405818,1.94321,3833.7,3833.6,0.9966]
[1754569406020,1.11061,3833.7,3833.6,3.9146]
[1754569406220,19.66561,3833.7,3833.6,3.9146]
[1754569406917,1.11061,3833.7,3833.6,3.9146]
[1754569407126,20.82901,3833.7,3833.6,3.9146]
[1754569408820,20.82901,3833.7,3833.6,3.2717]
[1754569409025,2.27631,3833.7,3833.6,3.2717]
[1754569409225,20.83131,3833.7,3833.6,3.2717]
[1754569409728,20.83131,3833.7,3833.6,3.9381]
[1754569411926,0.52172,3833.0,3832.9,3.035]
[1754569412124,20.82002,3833.0,3832.9,3.035]
[1754569412329,20.82002,3833.0,3832.9,3.9119]
[1754569412723,0.5217,3833.1,3832.9,3.9119]
[1754569412924,18.553,3833.0,3832.9,3.9119]
[1754569413226,18.553,3833.2,3833.1,3.9119]
[1754569413431,19.07468,3833.3,3833.2,3.9119]
[1754569415926,19.98678,3833.3,3833.2,3.9119]
[1754569416728,19.98478,3833.3,3833.2,3.9119]
[1754569418531,20.81698,3833.3,3833.2,3.9119]
[1754569418723,20.81698,3833.3,3833.2,3.2455]
[1754569420425,20.81698,3833.3,3833.2,3.9119]
[1754569420831,19.98278,3833.3,3833.2,3.9119]
[1754569422232,1.43378,3833.3,3833.2,3.9119]
[1754569422434,19.65258,3833.3,3833.2,3.9119]
[1754569422827,1.43378,3833.3,3833.2,3.9119]
[1754569423132,20.81298,3833.3,3833.2,3.9119]
[1754569424126,20.81298,3833.3,3833.2,2.4416]
[1754569424327,21.01868,3833.3,3833.2,0.8769]
[1754569425237,20.81298,3833.3,3833.2,1.4385]
[1754569425429,20.81298,3833.3,3833.2,3.3402]
[1754569425629,20.81298,3833.3,3833.2,3.9119]
[1754569425824,0.52168,3833.3,3833.2,3.9119]
[1754569426034,19.06668,3833.3,3833.2,3.9119]
[1754569426430,19.64958,3833.3,3833.2,3.9119]
[1754569426631,20.81098,3833.3,3833.2,3.9119]
[1754569427537,21.82033994,3833.3,3833.2,3.9119]
[1754569427838,21.82033994,3833.3,3832.7,2.89034]
[1754569427839,0.5829,3832.8,3832.7,2.89034]
[1754569428037,19.1269,3832.8,3832.7,2.89034]
[1754569428237,18.1269,3832.8,3832.7,2.89034]
[1754569428539,18.1269,3832.8,3832.7,4.43364]
[1754569429641,18.855,3832.8,3832.7,3.9119]
[1754569429835,0.9774,3832.8,3832.7,3.9119]
[1754569430034,1.24987,3832.6,3832.5,3.035]
[1754569430232,1.24987,3832.6,3832.5,3.9119]
[1754569430428,0.52177,3832.6,3832.5,3.9119]
[1754569430628,0.52176,3832.7,3832.6,4.43366]
[1754569431038,0.75836406,3832.9,3832.8,3.9119]
[1754569431334,1.5314693,3833.0,3832.9,3.9119]
[1754569432242,1.0097493,3833.0,3832.9,3.9119]
[1754569432642,1.28003406,3833.3,3833.2,3.9119]
[1754569432837,19.82003406,3833.3,3833.2,3.9119]
[1754569433047,1.5314193,3833.3,3833.2,3.9119]
[1754569433239,19.82003406,3833.3,3833.2,3.9119]
[1754569433439,20.0714193,3833.3,3833.2,3.9119]
[1754569433738,20.4006193,3833.3,3833.2,3.9119]
[1754569434143,1.0097493,3833.3,3833.2,3.9119]
[1754569434339,18.54,3833.3,3833.2,3.9119]
[1754569434642,19.5497493,3833.3,3833.2,3.9119]
[1754569435644,19.8789493,3833.3,3833.2,3.9119]
[1754569436041,19.62756406,3833.3,3833.2,3.9119]
[1754569436545,20.02646406,3833.3,3833.2,3.9119]
[1754569437036,20.27576406,3833.3,3833.2,3.9119]
[1754569437437,1.08756406,3833.3,3833.2,3.9119]
[1754569437638,19.62356406,3833.3,3833.2,3.9119]
[1754569437943,19.29436406,3833.3,3833.2,3.9119]
[1754569438743,20.02246406,3833.3,3833.2,3.9119]
[1754569438948,20.27176406,3833.3,3833.2,3.9119]
[1754569439839,20.02246406,3833.3,3833.2,3.9119]
[1754569440039,19.62356406,3833.3,3833.2,3.9119]
[1754569443239,19.98786406,3833.3,3833.2,3.9119]
[1754569443547,20.21556406,3833.3,3833.2,3.9119]
[1754569443747,20.21556406,3833.3,3833.2,3.8471]
[1754569444344,20.21556406,3833.3,3833.2,1.808]
[1754569444647,20.39966406,3833.3,3833.2,1.808]
[1754569445048,20.21556406,3833.3,3833.2,2.6406]
[1754569445247,20.21556406,3833.3,3833.2,3.8471]
[1754569448851,20.21556406,3833.3,3833.2,2.2393]
[1754569449048,20.21556406,3833.3,3833.2,3.8471]
[1754569449948,20.39966406,3833.3,3833.2,0.8769]
[1754569450748,20.39966406,3833.3,3833.2,1.7095]
[1754569451057,19.29436406,3833.3,3833.2,3.19]
[1754569451348,19.28236406,3833.3,3833.2,3.8471]
[1754569451745,19.28136406,3833.3,3833.2,3.8471]
[1754569452655,0.75836406,3833.3,3833.2,3.8471]
[1754569452844,0.52164,3833.5,3833.4,0.9507]
[1754569453149,20.09550406,3833.5,3833.4,3.8454]
[1754569453946,20.45980406,3833.5,3833.4,3.8454]
[1754569454148,20.68750406,3833.5,3833.4,3.8454]
[1754569455346,0.75836406,3833.5,3833.4,3.8454]
[1754569455551,19.27636406,3833.5,3833.4,3.8454]
[1754569455950,19.57086406,3833.5,3833.4,3.8454]
[1754569456352,1.05286406,3833.5,3833.4,3.8454]
[1754569456746,19.56986406,3833.5,3833.4,3.8454]
[1754569457046,19.79756406,3833.5,3833.4,3.8454]
[1754569457251,20.16186406,3833.5,3833.4,3.8454]
[1754569458954,19.27536406,3833.5,3833.4,3.8454]
[1754569459250,20.16186406,3833.5,3833.4,3.8454]
[1754569461956,1.64486406,3833.5,3833.4,3.8454]
[1754569462151,20.15686406,3833.5,3833.4,3.8454]
[1754569471451,19.25836406,3833.5,3833.4,3.8454]
[1754569471660,0.75836406,3833.5,3833.4,3.8454]
[1754569471857,0.75836406,3834.0,3833.9,1.5204]
[1754569472057,19.25636406,3834.0,3833.9,3.7495]
[1754569472259,0.97266718,3834.0,3833.9,4.27108]
[1754569472458,0.75836406,3834.0,3833.9,4.27108]
[1754569472759,19.25536406,3834.0,3833.9,4.27108]
[1754569472958,0.97266718,3834.0,3833.9,4.27108]
[1754569473160,19.25436406,3834.0,3833.9,4.27108]
[1754569474859,0.75836406,3834.0,3833.9,4.27108]
[1754569475067,19.25436406,3834.0,3833.9,4.27108]
[1754569475561,20.01406406,3834.0,3833.9,4.27108]
[1754569475764,20.01406406,3834.0,3833.9,3.7495]
[1754569477060,0.5622,3833.6,3833.5,1.5709]
[1754569477255,19.2517,3833.6,3833.5,4.27113]
[1754569477863,18.492,3833.6,3833.5,4.27113]
[1754569478556,1.0838,3833.8,3833.7,2.04201]
[1754569478754,19.0512,3833.8,3833.0,0.8228]
[1754569478965,1.28139,3833.1,3833.0,2.1607]
[1754569479164,19.76839,3833.1,3833.0,2.1607]
[1754569479461,19.76839,3833.1,3833.0,3.7495]
[1754569479663,20.52761424,3833.1,3833.0,3.7495]
[1754569481561,20.00592424,3833.1,3833.0,3.7495]
[1754569481867,1.28141,3833.0,3832.9,3.7495]
[1754569482064,2.04063424,3833.0,3832.9,3.7495]
[1754569482461,1.51892424,3833.0,3832.9,3.7495]
[1754569483062,19.2447,3833.0,3832.9,3.7495]
[1754569483263,20.00392424,3833.0,3832.9,3.7495]
[1754569484971,20.14392424,3833.0,3832.9,0.8228]
[1754569485170,20.38594346,3833.0,3832.9,0.8228]
[1754569485871,20.38594346,3833.0,3832.9,1.6053]
[1754569487072,20.14392424,3833.0,3832.9,0.8228]
[1754569487266,20.14392424,3833.0,3832.0,0.7825]
[1754569487267,0.52184,3832.1,3832.0,0.7825]
[1754569487473,0.52184,3832.1,3832.0,2.3029]
[1754569487975,0.52184,3832.1,3832.0,3.7495]
[1754569489778,1.22314,3832.1,3832.0,3.7495]
[1754569490278,1.22314,3832.1,3832.0,3.1257]
[1754569490475,1.22314,3832.1,3832.0,3.7495]
[1754569490670,1.36314,3832.1,3832.0,0.8228]
[1754569491076,1.36314,3832.1,3832.0,1.6053]
[1754569491472,1.22314,3832.1,3832.0,2.5524]
[1754569491780,1.22314,3832.1,3832.0,3.1762]
[1754569492280,1.22314,3832.1,3832.0,3.7495]
[1754569493675,1.22314,3832.1,3831.9,0.93946946]
[1754569493876,19.3163,3832.0,3831.9,1.76226946]
[1754569494376,19.3163,3832.0,3831.9,2.54476946]
[1754569495084,19.3163,3832.0,3831.9,1.76226946]
[1754569495282,19.3163,3832.0,3831.9,0.93946946]
[1754569495483,20.07321636,3832.0,3831.9,0.93946946]
[1754569496275,19.93321636,3832.0,3831.9,3.72396946]
[1754569496479,19.92721636,3832.0,3831.9,4.68896946]
[1754569496878,1.45821636,3832.0,3831.9,4.68896946]
[1754569497183,0.7013,3832.0,3831.9,4.68896946]
[1754569497383,19.1713,3832.0,3831.9,4.68896946]
[1754569497680,18.693,3832.0,3831.9,4.68896946]
[1754569497887,18.9867,3832.0,3831.9,4.68896946]
[1754569498079,19.1703,3832.0,3831.9,4.68896946]
[1754569501678,0.7013,3832.0,3831.9,4.68896946]
[1754569501883,19.1683,3832.0,3831.9,4.68896946]
[1754569502280,18.691,3832.0,3831.9,4.68896946]
[1754569502685,0.6603,3832.0,3831.9,4.68896946]
[1754569502888,19.1253,3832.0,3831.9,4.68896946]
[1754569503582,0.52184,3832.1,3832.0,3.6579]
[1754569503888,18.98384,3832.1,3832.0,3.6579]
[1754569505887,0.52184,3832.1,3832.0,3.6579]
[1754569506088,18.98084,3832.1,3832.0,3.6579]
[1754569506291,0.52184,3832.1,3832.0,3.6579]
[1754569506498,19.61594,3832.1,3832.0,3.6579]
[1754569506693,1.15694,3832.1,3832.0,3.6579]
[1754569507086,19.61494,3832.1,3832.0,3.6579]
[1754569508590,19.44714,3832.1,3832.0,3.6579]
[1754569509392,19.61494,3832.1,3832.0,3.6579]
[1754569510192,18.97984,3832.1,3832.0,3.6579]
[1754569510586,19.73800331,3832.1,3832.0,3.6579]
[1754569510788,1.28000331,3832.1,3832.0,3.6579]
[1754569510993,18.97684,3832.1,3832.0,3.6579]
[1754569511188,19.73500331,3832.1,3832.0,3.6579]
[1754569511492,19.73200331,3832.1,3832.0,3.6579]
[1754569511692,20.19930331,3832.1,3832.0,3.6579]
[1754569511892,20.36710331,3832.1,3832.0,3.6579]
[1754569512493,0.6351,3832.0,3831.9,3.01326946]
[1754569512795,19.0851,3832.0,3831.9,2.42796946]
[1754569513095,19.0851,3832.0,3831.9,4.01206946]
[1754569513295,19.84379098,3832.0,3831.9,4.59736946]
[1754569513491,19.0851,3832.0,3831.9,4.59736946]
[1754569513894,18.9173,3832.0,3831.9,4.59736946]
[1754569514095,18.45,3832.0,3831.9,4.59736946]
[1754569514289,0.75893265,3832.0,3831.9,4.59736946]
[1754569514498,18.45,3832.0,3831.9,4.59736946]
[1754569514696,19.20893265,3832.0,3831.9,4.59736946]
[1754569515798,19.40773265,3832.0,3831.9,4.59736946]
[1754569515999,19.84403265,3832.0,3831.9,4.59736946]
[1754569516299,19.84103265,3832.0,3831.9,4.59736946]
[1754569516495,0.75893265,3832.0,3831.9,4.59736946]
[1754569516797,18.444,3832.0,3831.9,4.59736946]
[1754569517000,19.20193265,3832.0,3831.9,4.59736946]
[1754569517299,0.75893265,3832.0,3831.9,4.59736946]
[1754569517499,18.443,3832.0,3831.9,4.59736946]
[1754569517797,19.20193265,3832.0,3831.9,4.59736946]
[1754569519893,19.66923265,3832.0,3831.9,3.04626946]
[1754569520097,19.83703265,3832.0,3831.9,2.52356946]
[1754569520301,20.07360152,3832.0,3831.9,2.52356946]
[1754569520592,20.19280152,3832.0,3831.9,1.75756946]
[1754569520788,20.19280152,3832.0,3831.9,2.52356946]
[1754569520996,20.06860152,3832.0,3831.9,2.52356946]
[1754569521703,20.06860152,3832.0,3831.9,3.04626946]
[1754569523393,20.06860152,3832.0,3831.9,2.28026946]
[1754569523699,20.19280152,3832.0,3831.9,0.93946946]
[1754569524093,0.52196,3831.2,3831.1,0.8181]
[1754569524297,19.59106,3831.2,3831.1,2.8398]
[1754569524492,19.59106,3831.2,3831.1,3.6579]
[1754569524801,18.434,3831.2,3831.1,3.6579]
[1754569526003,19.19516872,3831.2,3831.1,3.6579]
[1754569526259,1.30493,3831.1,3830.6,1.4034]
[1754569526423,0.98927,3831.1,3831.0,1.4885]
[1754569526622,19.41927,3831.1,3831.0,3.6579]
[1754569526904,1.91818813,3831.1,3831.0,3.6579]
[1754569527102,19.58707,3831.1,3831.0,1.3256]
[1754569527303,1.15712,3830.7,3830.6,3.6579]
[1754569527898,1.7503891,3830.7,3830.6,3.6579]
[1754569528105,0.52199,3831.0,3830.9,1.4885]
[1754569528307,19.41829,3831.0,3830.9,3.6579]
[1754569528606,20.34672076,3831.0,3830.9,3.6579]
[1754569529501,0.76063076,3831.0,3830.9,3.6579]
[1754569529702,18.428,3831.0,3830.9,3.6579]
[1754569530502,0.52192,3831.5,3831.2,1.4625]
[1754569530808,2.68000291,3832.0,3831.6,3.5711]
[1754569530809,1.06189,3831.7,3831.6,3.5711]
[1754569531108,19.48789,3831.7,3831.6,3.5711]
[1754569531401,20.24813212,3831.7,3831.6,3.5711]
[1754569532302,20.24813212,3831.7,3831.6,2.9865]
[1754569532795,20.24713212,3831.7,3831.6,2.9865]
[1754569533002,20.24713212,3831.7,3831.6,3.5711]
[1754569533403,20.34873212,3831.7,3831.6,0.7592]
[1754569535610,0.6416,3831.3,3831.2,0.7592]
[1754569535810,19.0606,3831.3,3831.2,0.7592]
[1754569536011,19.71924212,3831.3,3831.2,0.7592]
[1754569536207,0.52198,3831.0,3830.8,0.522]
[1754569536511,0.54,3830.8,3830.7,1.98452]
[1754569536707,0.76024212,3830.8,3830.7,1.98452]
[1754569536910,1.30003986,3830.8,3830.7,3.5711]
[1754569537113,0.1625,3830.8,3830.7,3.5711]
[1754569537415,0.3077,3831.3,3831.2,3.5711]
[1754569537712,18.956,3831.3,3831.2,3.5711]
[1754569538009,19.71584891,3831.3,3831.2,2.9865]
[1754569538212,0.1452,3830.9,3830.5,4.09314]
[1754569538413,0.3948,3830.6,3830.5,2.56914]
[1754569538601,2.06476891,3831.2,3830.5,2.56914]
[1754569538602,18.415,3830.7,3830.5,2.56914]
[1754569539008,0.3948,3830.6,3830.5,3.5711]
[1754569539311,0.3948,3830.6,3830.1,1.30525]
[1754569539312,1.062,3830.9,3830.8,3.5711]
[1754569539513,18.414,3830.9,3830.8,4.0931]
[1754569539714,19.17370261,3830.9,3830.8,4.0931]
[1754569540013,0.75970261,3830.9,3830.8,4.0931]
[1754569540213,18.414,3830.9,3830.8,4.0931]
[1754569541115,0.91673,3831.4,3831.3,3.5711]
[1754569541311,0.3948,3831.4,3831.3,3.5711]
[1754569541510,18.412,3831.4,3831.3,1.4625]
[1754569541717,19.17154084,3831.4,3831.3,1.4625]
[1754569541916,19.33404084,3831.4,3831.3,1.4625]
[1754569542119,19.33404084,3831.4,3831.3,3.5711]
[1754569542418,19.71154084,3831.4,3831.3,3.5711]
[1754569543507,0.2323,3831.1,3831.0,1.291]
[1754569543711,18.95,3831.1,3831.0,3.5711]
[1754569544110,19.7097025,3831.1,3831.0,3.5711]
[1754569544310,19.70970245,3831.1,3831.0,3.5711]
[1754569546815,19.56450245,3831.1,3831.0,3.5711]
[1754569547117,0.75970245,3831.1,3831.0,3.5711]
[1754569547319,0.68445,3831.3,3831.2,3.5711]
[1754569547520,19.08845,3831.3,3831.2,3.5711]
[1754569547714,20.08762023,3831.3,3831.2,3.5711]
[1754569548109,2.06112023,3831.3,3831.2,3.5711]
[1754569548421,1.28161245,3831.6,3831.5,3.5711]
[1754569548915,19.68461245,3831.6,3831.5,3.5711]
[1754569549117,20.08658023,3831.6,3831.5,3.5711]
[1754569549518,2.06108023,3831.6,3831.5,3.5711]
[1754569549819,19.55550245,3831.6,3831.5,3.5711]
[1754569550017,19.79497023,3831.6,3831.5,3.5711]
[1754569550221,19.79513592,3831.6,3831.5,3.5711]
[1754569550421,19.94033592,3831.6,3831.5,3.5711]
[1754569553423,1.53933592,3831.6,3831.5,3.5711]
[1754569553623,19.69570245,3831.6,3831.5,3.5711]
[1754569553820,19.93533592,3831.6,3831.5,3.5711]
[1754569554017,1.53933592,3831.6,3831.5,3.5711]
[1754569554222,19.69470245,3831.6,3831.5,3.5711]
[1754569554422,19.93433592,3831.6,3831.5,3.5711]
[1754569555722,1.53933592,3831.6,3831.5,3.5711]
[1754569555918,19.93233592,3831.6,3831.5,3.5711]
[1754569556124,19.69170245,3831.6,3831.5,3.5711]
[1754569556323,19.94280356,3831.6,3831.5,3.5711]
[1754569556731,1.55080356,3831.6,3831.5,3.5711]
[1754569556929,19.40180356,3831.6,3831.5,3.5711]
[1754569557126,1.01080356,3831.6,3831.5,3.5711]
[1754569557427,38.1108,3832.4,3832.3,0.9307]
[1754569557639,57.0323,3832.4,3832.3,3.5711]
[1754569558536,57.1535,3832.4,3832.3,3.5711]
[1754569559540,38.7635,3832.4,3832.3,3.5711]
[1754569559742,57.1505,3832.4,3832.3,3.5711]
[1754569559938,38.7635,3832.4,3832.3,3.5711]
[1754569560134,57.1485,3832.4,3832.3,3.5711]
[1754569560340,37.589,3832.4,3832.3,3.5711]
[1754569560546,55.974,3832.4,3832.3,3.5711]
[1754569560745,18.385,3832.4,3832.3,3.5711]
[1754569560948,0.52178,3832.6,3832.3,3.5711]
[1754569561246,19.7979,3832.5,3832.4,3.5838]
[1754569561640,19.9213,3832.5,3832.4,3.5838]
[1754569561848,20.1188,3832.5,3832.4,3.5838]
[1754569563048,20.1148,3832.5,3832.4,3.5838]
[1754569563550,18.38,3832.5,3832.4,3.5838]
[1754569564147,18.9132,3832.5,3832.4,3.5838]
[1754569564449,19.7939,3832.5,3832.4,3.5838]
[1754569564651,19.9173,3832.5,3832.4,3.5838]
[1754569565248,20.1148,3832.5,3832.4,3.5838]
[1754569566044,1.7348,3832.5,3832.4,3.5838]
[1754569566243,20.1088,3832.5,3832.4,3.5838]
[1754569566942,20.5715,3832.5,3832.4,1.3449]
[1754569567147,21.09328,3832.5,3832.4,3.0628]
[1754569567352,20.63058,3832.5,3832.4,3.5838]
[1754569568453,20.1088,3832.5,3832.4,3.5838]
[1754569568648,0.6566,3832.4,3832.3,1.6343]
[1754569568848,1.7348,3832.4,3832.3,2.0102]
[1754569569042,0.52177,3832.6,3832.4,0.5932]
[1754569569247,1.40247,3832.6,3832.5,3.5838]
[1754569569454,19.89487,3832.6,3832.5,3.5838]
[1754569569655,0.75470895,3832.6,3832.5,3.5838]
[1754569569846,0.6566,3833.2,3833.1,0.5932]
[1754569570054,20.42698,3833.2,3833.1,2.0102]
[1754569570354,21.18168895,3833.2,3833.1,3.5838]
[1754569570654,21.37918895,3833.2,3833.1,3.5838]
[1754569571159,3.01118895,3833.2,3833.1,3.5838]
[1754569571453,20.62448,3833.2,3833.1,3.5838]
[1754569571648,21.37918895,3833.2,3833.1,3.5838]
[1754569573154,2.88778895,3833.2,3833.1,2.9906]
[1754569573361,20.49808,3833.2,3833.1,3.5838]
[1754569573552,21.25278895,3833.2,3833.1,3.5838]
[1754569573753,2.88778895,3833.2,3833.1,3.5838]
[1754569573960,20.49408,3833.2,3833.1,3.5838]
[1754569574159,21.37218895,3833.2,3833.1,3.5838]
[1754569574357,3.01118895,3833.2,3833.1,3.5838]
[1754569574562,20.49308,3833.2,3833.1,3.5838]
[1754569574758,21.24778895,3833.2,3833.1,3.5838]
[1754569575059,21.37118895,3833.2,3833.1,3.5838]
[1754569576362,21.04928895,3833.2,3833.1,3.5838]
[1754569576753,2.69028895,3833.2,3833.1,3.5838]
[1754569576954,19.25088,3833.2,3833.1,3.5838]
[1754569577256,0.52161,3833.8,3833.2,1.30421]
[1754569577453,2.16774582,3833.9,3833.8,3.5838]
[1754569577659,0.75384582,3833.9,3833.8,3.5838]
[1754569577858,18.354,3833.9,3833.8,3.5838]
[1754569579361,18.352,3834.1,3834.0,0.8969]
[1754569579661,0.52152,3834.5,3834.1,3.5838]
[1754569579856,1.7348,3834.5,3834.4,3.5838]
[1754569580162,20.0858,3834.5,3834.4,3.5838]
[1754569580364,20.83901052,3834.5,3834.4,3.5838]
[1754569581856,1.4139,3834.5,3834.4,3.5838]
[1754569582163,19.7599,3834.5,3834.4,3.5838]
[1754569582862,1.4139,3834.5,3834.4,3.5838]
[1754569583062,1.7348,3834.9,3834.8,3.5838]
[1754569583364,20.60125,3834.9,3834.8,3.5838]
[1754569583763,2.25625,3834.9,3834.8,3.5838]
[1754569583961,19.9534,3834.9,3834.8,3.5838]
[1754569584164,19.2227,3834.9,3834.8,3.5838]
[1754569584359,19.7559,3834.9,3834.8,3.5838]
[1754569584763,1.4139,3834.9,3834.8,3.5838]
[1754569584958,1.0,3835.0,3834.9,4.10525]
[1754569585462,19.34,3835.0,3834.9,4.10525]
[1754569586263,19.34,3835.0,3834.9,3.5838]
[1754569587059,21.5375,3835.0,3834.9,1.5736]
[1754569587564,21.0698,3835.0,3834.9,3.5838]
[1754569588365,20.9464,3835.0,3834.9,3.5838]
[1754569589073,19.335,3835.0,3834.9,3.5838]
[1754569589269,20.3458,3835.0,3834.9,3.5838]
[1754569589475,20.9882,3835.0,3834.9,3.5838]
[1754569590369,21.73910138,3835.0,3834.9,3.5838]
[1754569591573,20.07990138,3835.0,3834.9,3.5838]
[1754569591769,19.329,3835.0,3834.9,3.5838]
[1754569592471,1.5119,3835.0,3834.9,3.5838]
[1754569592672,20.3378,3835.0,3834.9,3.5838]
[1754569592872,21.63601623,3835.0,3834.9,3.5838]
[1754569593075,21.73101623,3835.0,3834.9,3.5838]
[1754569594478,1.6532,3834.6,3834.5,2.7394]
[1754569594975,1.6532,3834.6,3834.5,3.5395]